fUSD/lending_fUSD_20250530
["ID","MTS","AMOUNT","RATE_DAILY","PERIOD"]
[363072172,1748567440980,-420.0,0.00021917,2]
[363072174,1748567440992,-787.67,0.00021917,2]
[363072176,1748567441011,-420.0,0.00021917,2]
[363072178,1748567441024,-1855.45,0.00021917,2]
[363072180,1748567441034,-420.0,0.00021917,2]
[363072182,1748567441044,-420.0,0.00021917,2]
[363072184,1748567441053,-420.0,0.00021917,2]
[363072186,1748567441062,-761.92,0.00021917,2]
[363072188,1748567441072,-496.61,0.00021917,2]
[363072190,1748567441082,-425.64922954,0.00021917,2]
[363072192,1748567441091,-448.43,0.00021917,2]
[363072194,1748567441101,-420.0,0.00021917,2]
[363072196,1748567441111,-1259.73,0.00021917,2]
[363072198,1748567441120,-420.0,0.00021917,2]
[363072200,1748567441130,-420.0,0.00021917,2]
[363072202,1748567441139,-420.0,0.00021917,2]
[363072204,1748567441149,-531.25,0.00021917,2]
[363072206,1748567441158,-420.0,0.00021917,2]
[363072208,1748567441167,-1612.91,0.00021917,2]
[363072210,1748567441177,-420.0,0.00021917,2]
[363072212,1748567441187,-420.0,0.00021917,2]
[363072214,1748567441196,-420.0,0.00021917,2]
[363072216,1748567441206,-420.0,0.00021917,2]
[363072218,1748567441215,-1003.26,0.00021917,2]
[363072220,1748567441227,-420.0,0.00021917,2]
[363072222,1748567441237,-2302.93,0.00021917,2]
[363072224,1748567441247,-846.77,0.00021917,2]
[363072226,1748567441256,-420.0,0.00021917,2]
[363072228,1748567441266,-1427.48,0.00021917,2]
[363072230,1748567441275,-568.45,0.00021917,2]
[363072232,1748567441285,-420.0,0.00021917,2]
[363072234,1748567441294,-487.41,0.00021917,2]
[363072236,1748567441304,-521.03,0.00021917,2]
[363072238,1748567441313,-151.379774,0.00021917,2]
[363072240,1748567441322,-1336.05,0.00021917,2]
[363072243,1748567441332,-469.58,0.00021917,2]
[363072245,1748567441342,-1010.47,0.00021917,2]
[363072247,1748567441352,-420.0,0.00021917,2]
[363072249,1748567441361,-400.0,0.00021917,2]
[363072251,1748567441370,-431.31716981,0.00021917,2]
[363072253,1748567441379,-558.84,0.00021917,2]
[363072255,1748567441389,-513.8286642,0.00021917,2]
[363072257,1748567441398,-420.0,0.00021917,2]
[363072259,1748567441408,-561.12,0.00021917,2]
[363072261,1748567441417,-1379.23,0.00021917,2]
[363072263,1748567441427,-525.1,0.00021917,2]
[363072265,1748567441436,-423.60156751,0.00021917,2]
[363072267,1748567441446,-357.07698063,0.00021917,2]
[363072269,1748567441457,-420.0,0.00021917,2]
[363072271,1748567441469,-420.0,0.00021917,2]
[363072273,1748567441478,-420.0,0.00021917,2]
[363072275,1748567441487,-420.0,0.00021917,2]
[363072277,1748567441497,-420.0,0.00021917,2]
[363072279,1748567441506,-699.22,0.00021917,2]
[363072281,1748567441516,-420.0,0.00021917,2]
[363072283,1748567441525,-539.99,0.00021917,2]
[363072285,1748567441534,-904.45,0.00021917,2]
[363072286,1748567441542,-420.0,0.00021917,2]
[363072287,1748567441552,-207.23063706,0.00021917,2]
[363072288,1748567441563,-420.0,0.00021917,2]
[363072289,1748567441573,-420.0,0.00021917,2]
[363072290,1748567441582,-420.0,0.00021917,2]
[363072291,1748567441591,-420.0,0.00021917,2]
[363072292,1748567441600,-1400.87,0.00021917,2]
[363072293,1748567441608,-1845.31,0.00021917,2]
[363072294,1748567441617,-420.0,0.00021917,2]
[363072295,1748567441626,-581.72,0.00021917,2]
[363072296,1748567441635,-420.0,0.00021917,2]
[363072298,1748567441645,-420.0,0.00021917,2]
[363072300,1748567441655,-1292.51,0.00021917,2]
[363072302,1748567441664,-1579.4,0.00021917,2]
[363072304,1748567441674,-420.0,0.00021917,2]
[363072306,1748567441684,-420.0,0.00021917,2]
[363072308,1748567441693,-420.0,0.00021917,2]
[363072310,1748567441703,-420.0,0.00021917,2]
[363072312,1748567441712,-785.58,0.00021917,2]
[363072314,1748567441727,-420.0,0.00021917,2]
[363072316,1748567441736,-437.55,0.00021917,2]
[363072318,1748567441746,-752.61,0.00021917,2]
[363072320,1748567441756,-420.0,0.00021917,2]
[363072322,1748567441765,-510.19,0.00021917,2]
[363072324,1748567441775,-750.79,0.00021917,2]
[363072326,1748567441786,-698.23,0.00021917,2]
[363072328,1748567441795,-781.14,0.00021917,2]
[363072330,1748567441805,-420.0,0.00021917,2]
[363072332,1748567441813,-639.24,0.00021917,2]
[363072334,1748567441822,-522.31,0.00021917,2]
[363072336,1748567441831,-288.42,0.00021917,2]
[363072338,1748567441841,-420.0,0.00021917,2]
[363072340,1748567441850,-420.0,0.00021917,2]
[363072342,1748567441860,-950.36,0.00021917,2]
[363072344,1748567441869,-420.0,0.00021917,2]
[363072346,1748567441878,-549.18,0.00021917,2]
[363072348,1748567441888,-420.0,0.00021917,2]
[363072350,1748567441897,-420.0,0.00021917,2]
[363072352,1748567441906,-450.94,0.00021917,2]
[363072354,1748567441915,-815.11,0.00021917,2]
[363072356,1748567441925,-749.27,0.00021917,2]
[363072358,1748567441935,-420.0,0.00021917,2]
[363072360,1748567441944,-1616.07,0.00021917,2]
[363072362,1748567441953,-420.0,0.00021917,2]
[363072364,1748567441963,-420.0,0.00021917,2]
[363072366,1748567441976,-420.0,0.00021917,2]
[363072368,1748567441985,-1514.27,0.00021917,2]
[363072370,1748567441995,-420.0,0.00021917,2]
[363072372,1748567442010,-420.0,0.00021917,2]
[363072374,1748567442023,-420.0,0.00021917,2]
[363072376,1748567442033,-1182.23,0.00021917,2]
[363072378,1748567442043,-534.69,0.00021917,2]
[363072380,1748567442053,-420.0,0.00021917,2]
[363072382,1748567442062,-689.6,0.00021917,2]
[363072384,1748567442072,-420.0,0.00021917,2]
[363072386,1748567442084,-549.53,0.00021917,2]
[363072388,1748567442094,-420.0,0.00021917,2]
[363072390,1748567442104,-1405.71,0.00021917,2]
[363072392,1748567442113,-700.77,0.00021917,2]
[363072394,1748567442122,-213.34870051,0.00021917,2]
[363072396,1748567442132,-1373.75,0.00021917,2]
[363072398,1748567442142,-420.0,0.00021917,2]
[363072400,1748567442152,-2073.77,0.00021917,2]
[363072402,1748567442161,-420.0,0.00021917,2]
[363072404,1748567442171,-420.0,0.00021917,2]
[363072405,1748567442181,-848.82,0.00021917,2]
[363072407,1748567442192,-420.0,0.00021917,2]
[363072410,1748567442202,-686.48,0.00021917,2]
[363072412,1748567442212,-420.0,0.00021917,2]
[363072414,1748567442229,-420.0,0.00021917,2]
[363072416,1748567442240,-420.0,0.00021917,2]
[363072418,1748567442250,-904.08,0.00021917,2]
[363072419,1748567442259,-420.0,0.00021917,2]
[363072421,1748567442269,-420.0,0.00021917,2]
[363072424,1748567442280,-1327.7,0.00021917,2]
[363072425,1748567442290,-420.0,0.00021917,2]
[363072428,1748567442300,-420.0,0.00021917,2]
[363072429,1748567442311,-420.0,0.00021917,2]
[363072431,1748567442320,-518.3,0.00021917,2]
[363072433,1748567442330,-336.0524652,0.00021917,2]
[363072435,1748567442340,-420.0,0.00021917,2]
[363072437,1748567442350,-296.23677537,0.00021917,2]
[363072439,1748567442359,-420.0,0.00021917,2]
[363072441,1748567442369,-420.0,0.00021917,2]
[363072443,1748567442379,-1581.41,0.00021917,2]
[363072445,1748567442388,-420.0,0.00021917,2]
[363072447,1748567442398,-1133.16,0.00021917,2]
[363072449,1748567442407,-1685.39,0.00021917,2]
[363072451,1748567442417,-420.0,0.00021917,2]
[363072453,1748567442427,-420.0,0.00021917,2]
[363072455,1748567442435,-420.0,0.00021917,2]
[363072457,1748567442445,-420.0,0.00021917,2]
[363072459,1748567442455,-1511.15,0.00021917,2]
[363072461,1748567442465,-420.0,0.00021917,2]
[363072463,1748567442479,-1417.74,0.00021917,2]
[363072465,1748567442488,-420.0,0.00021917,2]
[363072467,1748567442498,-420.0,0.00021917,2]
[363072469,1748567442507,-748.16,0.00021917,2]
[363072471,1748567442517,-300.0,0.00021917,2]
[363072473,1748567442526,-507.54,0.00021917,2]
[363072475,1748567442536,-500.0,0.00021917,2]
[363072478,1748567442546,-500.0,0.00021917,2]
[363072479,1748567442555,-203.27080747,0.00021917,2]
[363072481,1748567442564,-2051.98,0.00021917,2]
[363072484,1748567442574,-420.0,0.00021917,2]
[363072486,1748567442583,-544.42,0.00021917,2]
[363072488,1748567442593,-691.17,0.00021917,2]
[363072489,1748567442602,-557.01,0.00021917,2]
[363072492,1748567442612,-420.0,0.00021917,2]
[363072494,1748567442621,-437.5,0.00021917,2]
[363072496,1748567442631,-420.0,0.00021917,2]
[363072498,1748567442640,-984.33,0.00021917,2]
[363072500,1748567442649,-420.0,0.00021917,2]
[363072502,1748567442659,-626.52,0.00021917,2]
[363072504,1748567442668,-420.0,0.00021917,2]
[363072506,1748567442678,-1853.44,0.00021917,2]
[363072507,1748567442687,-571.69,0.00021917,2]
[363072509,1748567442697,-420.0,0.00021917,2]
[363072512,1748567442706,-420.0,0.00021917,2]
[363072514,1748567442716,-420.0,0.00021917,2]
[363072516,1748567442728,-420.0,0.00021917,2]
[363072518,1748567442737,-420.0,0.00021917,2]
[363072522,1748567442746,-420.0,0.00021917,2]
[363072525,1748567442756,-420.0,0.00021917,2]
[363072528,1748567442765,-420.0,0.00021917,2]
[363072530,1748567442775,-420.0,0.00021917,2]
[363072535,1748567442784,-496.91,0.00021917,2]
[363072537,1748567442794,-553.59,0.00021917,2]
[363072540,1748567442803,-420.0,0.00021917,2]
[363072542,1748567442813,-922.4,0.00021917,2]
[363072545,1748567442822,-1432.47,0.00021917,2]
[363072546,1748567442832,-420.0,0.00021917,2]
[363072547,1748567442841,-427.8,0.00021917,2]
[363072548,1748567442850,-621.22,0.00021917,2]
[363072549,1748567442859,-407.67768308,0.00021917,2]
[363072550,1748567442870,-420.0,0.00021917,2]
[363072551,1748567442880,-271.56264961,0.00021917,2]
[363072552,1748567442890,-251.75257234,0.00021917,2]
[363072554,1748567442899,-473.12,0.00021917,2]
[363072557,1748567442909,-657.87,0.00021917,2]
[363072560,1748567442918,-320.6406043,0.00021917,2]
[363072564,1748567442928,-420.0,0.00021917,2]
[363072567,1748567442938,-850.93,0.00021917,2]
[363072569,1748567442948,-655.19,0.00021917,2]
[363072570,1748567442957,-918.46,0.00021917,2]
[363072571,1748567442968,-420.0,0.00021917,2]
[363072572,1748567442978,-190.82040125,0.00021917,2]
[363072573,1748567442987,-1006.91,0.00021917,2]
[363072575,1748567443001,-420.0,0.00021917,2]
[363072577,1748567443010,-420.0,0.00021917,2]
[363072579,1748567443020,-420.0,0.00021917,2]
[363072584,1748567443029,-420.0,0.00021917,2]
[363072588,1748567443040,-420.0,0.00021917,2]
[363072591,1748567443049,-420.0,0.00021917,2]
[363072594,1748567443058,-586.7,0.00021917,2]
[363072598,1748567443068,-420.0,0.00021917,2]
[363072601,1748567443078,-786.51,0.00021917,2]
[363072605,1748567443088,-626.65,0.00021917,2]
[363072608,1748567443097,-420.0,0.00021917,2]
[363072612,1748567443107,-420.0,0.00021917,2]
[363072613,1748567443125,-828.34,0.00021917,2]
[363072616,1748567443135,-473.95,0.00021917,2]
[363072619,1748567443144,-420.0,0.00021917,2]
[363072621,1748567443153,-420.0,0.00021917,2]
[363072623,1748567443163,-420.0,0.00021917,2]
[363072625,1748567443174,-420.0,0.00021917,2]
[363072626,1748567443184,-420.0,0.00021917,2]
[363072627,1748567443194,-493.08,0.00021917,2]
[363072629,1748567443203,-828.51,0.00021917,2]
[363072631,1748567443213,-1323.6,0.00021917,2]
[363072633,1748567443227,-420.0,0.00021917,2]
[363072635,1748567443237,-420.0,0.00021917,2]
[363072637,1748567443246,-420.0,0.00021917,2]
[363072639,1748567443256,-420.0,0.00021917,2]
[363072641,1748567443265,-1181.27,0.00021917,2]
[363072643,1748567443275,-420.0,0.00021917,2]
[363072645,1748567443285,-1790.34,0.00021917,2]
[363072647,1748567443294,-1164.14,0.00021917,2]
[363072648,1748567443304,-2423.23,0.00021917,2]
[363072649,1748567443313,-420.0,0.00021917,2]
[363072650,1748567443323,-420.0,0.00021917,2]
[363072651,1748567443332,-804.54,0.00021917,2]
[363072652,1748567443342,-420.0,0.00021917,2]
[363072653,1748567443351,-901.26,0.00021917,2]
[363072654,1748567443361,-615.73,0.00021917,2]
[363072655,1748567443370,-1359.5,0.00021917,2]
[363072656,1748567443380,-420.0,0.00021917,2]
[363072657,1748567443389,-420.0,0.00021917,2]
[363072658,1748567443398,-420.0,0.00021917,2]
[363072659,1748567443408,-420.0,0.00021917,2]
[363072660,1748567443417,-420.0,0.00021917,2]
[363072661,1748567443426,-420.0,0.00021917,2]
[363072662,1748567443436,-500.0,0.00021917,2]
[363072663,1748567443446,-420.0,0.00021917,2]
[363072664,1748567443455,-1334.6,0.00021917,2]
[363072665,1748567443465,-420.0,0.00021917,2]
[363072666,1748567443480,-188.29463312,0.00021917,2]
[363072667,1748567443490,-420.0,0.00021917,2]
[363072668,1748567443500,-420.0,0.00021917,2]
[363072669,1748567443509,-420.0,0.00021917,2]
[363072670,1748567443519,-672.31,0.00021917,2]
[363072671,1748567443529,-420.0,0.00021917,2]
[363072672,1748567443538,-420.0,0.00021917,2]
[363072673,1748567443547,-420.0,0.00021917,2]
[363072674,1748567443557,-420.0,0.00021917,2]
[363072675,1748567443566,-420.0,0.00021917,2]
[363072677,1748567443576,-526.71,0.00021917,2]
[363072679,1748567443585,-420.0,0.00021917,2]
[363072680,1748567443594,-420.0,0.00021917,2]
[363072682,1748567443604,-437.42,0.00021917,2]
[363072685,1748567443613,-1606.43,0.00021917,2]
[363072687,1748567443623,-420.0,0.00021917,2]
[363072689,1748567443632,-420.0,0.00021917,2]
[363072692,1748567443641,-420.0,0.00021917,2]
[363072696,1748567443651,-420.0,0.00021917,2]
[363072700,1748567443660,-1204.12,0.00021917,2]
[363072704,1748567443670,-404.49305468,0.00021917,2]
[363072707,1748567443679,-420.0,0.00021917,2]
[363072710,1748567443689,-420.0,0.00021917,2]
[363072712,1748567443698,-420.0,0.00021917,2]
[363072714,1748567443708,-2696.99,0.00021917,2]
[363072716,1748567443721,-443.26,0.00021917,2]
[363072717,1748567443730,-420.0,0.00021917,2]
[363072719,1748567443740,-420.0,0.00021917,2]
[363072721,1748567443749,-643.84,0.00021917,2]
[363072722,1748567443759,-435.21808901,0.00021917,2]
[363072723,1748567443768,-1180.34,0.00021917,2]
[363072724,1748567443777,-420.0,0.00021917,2]
[363072725,1748567443787,-420.0,0.00021917,2]
[363072726,1748567443796,-420.0,0.00021917,2]
[363072727,1748567443806,-467.79,0.00021917,2]
[363072728,1748567443820,-1320.07,0.00021917,2]
[363072730,1748567443841,-420.0,0.00021917,2]
[363072732,1748567443852,-400.04414814,0.00021917,2]
[363072734,1748567443861,-420.0,0.00021917,2]
[363072736,1748567443872,-420.0,0.00021917,2]
[363072738,1748567443882,-420.0,0.00021917,2]
[363072740,1748567443892,-420.0,0.00021917,2]
[363072742,1748567443903,-909.11,0.00021917,2]
[363072744,1748567443913,-1378.18,0.00021917,2]
[363072746,1748567443923,-420.0,0.00021917,2]
[363072748,1748567443932,-268.8836759,0.00021917,2]
[363072750,1748567443943,-1217.43,0.00021917,2]
[363072752,1748567443954,-420.0,0.00021917,2]
[363072754,1748567443966,-420.0,0.00021917,2]
[363072756,1748567443979,-420.0,0.00021917,2]
[363072758,1748567443989,-559.54,0.00021917,2]
[363072760,1748567443999,-489.12,0.00021917,2]
[363072762,1748567444010,-420.0,0.00021917,2]
[363072764,1748567444019,-586.25,0.00021917,2]
[363072766,1748567444028,-561.02,0.00021917,2]
[363072768,1748567444038,-420.0,0.00021917,2]
[363072769,1748567444047,-534.87418599,0.00021917,2]
[363072771,1748567444056,-1033.57,0.00021917,2]
[363072773,1748567444065,-420.0,0.00021917,2]
[363072775,1748567444075,-420.0,0.00021917,2]
[363072778,1748567444085,-526.87,0.00021917,2]
[363072780,1748567444095,-420.0,0.00021917,2]
[363072782,1748567444104,-423.93618263,0.00021917,2]
[363072784,1748567444114,-420.0,0.00021917,2]
[363072786,1748567444124,-420.0,0.00021917,2]
[363072788,1748567444133,-535.59359679,0.00021917,2]
[363072790,1748567444143,-620.97,0.00021917,2]
[363072791,1748567444152,-420.0,0.00021917,2]
[363072793,1748567444162,-420.0,0.00021917,2]
[363072795,1748567444173,-420.0,0.00021917,2]
[363072796,1748567444182,-420.0,0.00021917,2]
[363072820,1748567444192,-420.0,0.00021917,2]
[363072822,1748567444416,-420.0,0.00021917,2]
[363072824,1748567444425,-420.0,0.00021917,2]
[363072826,1748567444435,-444.74,0.00021917,2]
[363072828,1748567444444,-1361.12,0.00021917,2]
[363072830,1748567444454,-552.5,0.00021917,2]
[363072832,1748567444463,-420.0,0.00021917,2]
[363072834,1748567444474,-652.76,0.00021917,2]
[363072836,1748567444483,-420.0,0.00021917,2]
[363072838,1748567444492,-420.0,0.00021917,2]
[363072840,1748567444502,-1359.3,0.00021917,2]
[363072842,1748567444511,-420.0,0.00021917,2]
[363072844,1748567444520,-420.0,0.00021917,2]
[363072846,1748567444530,-420.0,0.00021917,2]
[363072848,1748567444540,-420.0,0.00021917,2]
[363072850,1748567444549,-1434.38,0.00021917,2]
[363072852,1748567444559,-420.0,0.00021917,2]
[363072854,1748567444568,-420.0,0.00021917,2]
[363072856,1748567444578,-435.41087886,0.00021917,2]
[363072858,1748567444587,-420.0,0.00021917,2]
[363072860,1748567444596,-484.29,0.00021917,2]
[363072862,1748567444606,-931.51,0.00021917,2]
[363072864,1748567444617,-420.0,0.00021917,2]
[363072866,1748567444629,-420.0,0.00021917,2]
[363072868,1748567444641,-420.0,0.00021917,2]
[363072870,1748567444651,-420.0,0.00021917,2]
[363072872,1748567444661,-420.0,0.00021917,2]
[363072874,1748567444671,-500.0,0.00021917,2]
[363072876,1748567444681,-420.0,0.00021917,2]
[363072878,1748567444690,-420.0,0.00021917,2]
[363072880,1748567444699,-435.52166748,0.00021917,2]
[363072882,1748567444709,-420.0,0.00021917,2]
[363072884,1748567444720,-549.88,0.00021917,2]
[363072885,1748567444729,-420.0,0.00021917,2]
[363072888,1748567444739,-420.0,0.00021917,2]
[363072890,1748567444749,-1112.82,0.00021917,2]
[363072892,1748567444758,-423.40748256,0.00021917,2]
[363072893,1748567444767,-436.13351069,0.00021917,2]
[363072896,1748567444777,-634.06,0.00021917,2]
[363072898,1748567444787,-420.0,0.00021917,2]
[363072900,1748567444796,-420.0,0.00021917,2]
[363072902,1748567444806,-420.0,0.00021917,2]
[363072904,1748567444815,-3475.41,0.00021917,2]
[363072906,1748567444825,-623.22,0.00021917,2]
[363072908,1748567444834,-420.0,0.00021917,2]
[363072909,1748567444844,-2751.84,0.00021917,2]
[363072911,1748567444854,-1485.41,0.00021917,2]
[363072913,1748567444864,-1417.76,0.00021917,2]
[363072916,1748567444873,-600.19,0.00021917,2]
[363072918,1748567444883,-543.75536129,0.00021917,2]
[363072920,1748567444892,-420.0,0.00021917,2]
[363072922,1748567444903,-600.05,0.00021917,2]
[363072924,1748567444913,-1127.42,0.00021917,2]
[363072926,1748567444922,-1840.46,0.00021917,2]
[363072928,1748567444932,-420.0,0.00021917,2]
[363072930,1748567444941,-753.23,0.00021917,2]
[363072932,1748567444951,-420.0,0.00021917,2]
[363072934,1748567444959,-441.21,0.00021917,2]
[363072936,1748567444969,-10700.29,0.00021917,2]
[363072938,1748567444979,-628.05,0.00021917,2]
[363072940,1748567444988,-420.0,0.00021917,2]
[363072942,1748567444998,-420.0,0.00021917,2]
[363072944,1748567445011,-732.23,0.00021917,2]
[363072945,1748567445021,-424.96406087,0.00021917,2]
[363072947,1748567445030,-420.0,0.00021917,2]
[363072949,1748567445040,-1192.49,0.00021917,2]
[363072951,1748567445049,-599.95,0.00021917,2]
[363072953,1748567445059,-420.0,0.00021917,2]
[363072955,1748567445068,-420.0,0.00021917,2]
[363072957,1748567445077,-538.81,0.00021917,2]
[363072959,1748567445087,-420.0,0.00021917,2]
[363072961,1748567445096,-420.0,0.00021917,2]
[363072963,1748567445106,-466.47,0.00021917,2]
[363072966,1748567445117,-420.0,0.00021917,2]
[363072967,1748567445127,-420.0,0.00021917,2]
[363072969,1748567445137,-420.0,0.00021917,2]
[363072972,1748567445147,-442.59,0.00021917,2]
[363072973,1748567445156,-591.41,0.00021917,2]
[363072976,1748567445167,-9645.06,0.00021917,2]
[363072978,1748567445176,-823.41,0.00021917,2]
[363072979,1748567445185,-3038.57,0.00021917,2]
[363072982,1748567445196,-420.0,0.00021917,2]
[363072983,1748567445205,-5212.23,0.00021917,2]
[363072986,1748567445215,-420.0,0.00021917,2]
[363072988,1748567445227,-1225.66,0.00021917,2]
[363072990,1748567445237,-1668.73,0.00021917,2]
[363072991,1748567445247,-552.98,0.00021917,2]
[363072993,1748567445257,-420.0,0.00021917,2]
[363072995,1748567445266,-911.73,0.00021917,2]
[363072997,1748567445277,-420.0,0.00021917,2]
[363072999,1748567445286,-420.0,0.00021917,2]
[363073001,1748567445296,-420.0,0.00021917,2]
[363073003,1748567445306,-1075.02,0.00021917,2]
[363073005,1748567445316,-420.0,0.00021917,2]
[363073007,1748567445326,-466.01570375,0.00021917,2]
[363073009,1748567445336,-449.21,0.00021917,2]
[363073011,1748567445345,-556.57,0.00021917,2]
[363073013,1748567445355,-779.47,0.00021917,2]
[363073015,1748567445365,-420.0,0.00021917,2]
[363073017,1748567445375,-786.6,0.00021917,2]
[363073019,1748567445385,-765.45,0.00021917,2]
[363073021,1748567445394,-420.0,0.00021917,2]
[363073023,1748567445403,-420.0,0.00021917,2]
[363073025,1748567445413,-1345.94,0.00021917,2]
[363073027,1748567445423,-420.0,0.00021917,2]
[363073029,1748567445432,-500.0,0.00021917,2]
[363073031,1748567445442,-1000.0,0.00021917,2]
[363073033,1748567445453,-596.41,0.00021917,2]
[363073035,1748567445462,-420.0,0.00021917,2]
[363073037,1748567445474,-2293.55,0.00021917,2]
[363073039,1748567445483,-1263.02,0.00021917,2]
[363073041,1748567445492,-324.65831259,0.00021917,2]
[363073043,1748567445502,-420.0,0.00021917,2]
[363073045,1748567445511,-420.0,0.00021917,2]
[363073047,1748567445521,-420.0,0.00021917,2]
[363073049,1748567445531,-25847.19,0.00021917,2]
[363073051,1748567445540,-3007.53,0.00021917,2]
[363073053,1748567445550,-462.82,0.00021917,2]
[363073055,1748567445559,-1304.85,0.00021917,2]
[363073057,1748567445569,-450.59,0.00021917,2]
[363073059,1748567445578,-1797.36,0.00021917,2]
[363073061,1748567445588,-1477.64,0.00021917,2]
[363073063,1748567445597,-420.0,0.00021917,2]
[363073065,1748567445606,-1328.87,0.00021917,2]
[363073067,1748567445615,-420.0,0.00021917,2]
[363073069,1748567445624,-4821.33,0.00021917,2]
[363073071,1748567445634,-460.15,0.00021917,2]
[363073073,1748567445643,-1795.69,0.00021917,2]
[363073075,1748567445653,-1572.76,0.00021917,2]
[363073077,1748567445662,-2085.62,0.00021917,2]
[363073079,1748567445671,-420.0,0.00021917,2]
[363073081,1748567445681,-420.0,0.00021917,2]
[363073083,1748567445690,-420.0,0.00021917,2]
[363073085,1748567445699,-548.52,0.00021917,2]
[363073087,1748567445709,-44092.13,0.00021917,2]
[363073089,1748567445721,-420.0,0.00021917,2]
[363073091,1748567445731,-548.52,0.00021917,2]
[363073093,1748567445740,-636.11,0.00021917,2]
[363073095,1748567445749,-548.52,0.00021917,2]
[363073100,1748567445759,-548.52,0.00021917,2]
[363073104,1748567445769,-770.08,0.00021917,2]
[363073108,1748567445779,-420.0,0.00021917,2]
[363073112,1748567445788,-3197.05,0.00021917,2]
[363073116,1748567445797,-1656.4,0.00021917,2]
[363073119,1748567445808,-980.14,0.00021917,2]
[363073125,1748567445817,-870.81,0.00021917,2]
[363073130,1748567445827,-420.0,0.00021917,2]
[363073134,1748567445837,-420.0,0.00021917,2]
[363073138,1748567445846,-420.0,0.00021917,2]
[363073143,1748567445855,-8762.31,0.00021917,2]
[363073147,1748567445864,-420.0,0.00021917,2]
[363073151,1748567445874,-1557.81,0.00021917,2]
[363073158,1748567445884,-420.0,0.00021917,2]
[363073165,1748567445893,-420.0,0.00021917,2]
[363073172,1748567445901,-420.0,0.00021917,2]
[363073179,1748567445910,-420.0,0.00021917,2]
[363073184,1748567445921,-420.0,0.00021917,2]
[363073190,1748567445931,-420.0,0.00021917,2]
[363073200,1748567445940,-1051.03,0.00021917,2]
[363073210,1748567445951,-2418.63,0.00021917,2]
[363073218,1748567445959,-437.5,0.00021917,2]
[363073226,1748567445970,-1439.34,0.00021917,2]
[363073236,1748567445980,-433.48,0.00021917,2]
[363073245,1748567445992,-420.0,0.00021917,2]
[363073256,1748567446004,-2274.64,0.00021917,2]
[363073265,1748567446013,-1262.96,0.00021917,2]
[363073274,1748567446025,-3186.72,0.00021917,2]
[363073287,1748567446035,-420.0,0.00021917,2]
[363073293,1748567446044,-2115.8,0.00021917,2]
[363073301,1748567446053,-910.82,0.00021917,2]
[363073309,1748567446063,-420.0,0.00021917,2]
[363073318,1748567446072,-420.0,0.00021917,2]
[363073327,1748567446084,-443.28568196,0.00021917,2]
[363073335,1748567446094,-668.74,0.00021917,2]
[363073343,1748567446103,-1909.89,0.00021917,2]
[363073350,1748567446112,-1563.07,0.00021917,2]